fUST/lending_fUST_20250527
["ID","MTS","AMOUNT","RATE_DAILY","PERIOD"]
[362480739,1748333446311,-430.0,0.00019726,2]
[362480740,1748333446320,-430.0,0.00019726,2]
[362480741,1748333446330,-430.0,0.00019726,2]
[362480742,1748333446339,-430.0,0.00019726,2]
[362480743,1748333446349,-644.76,0.00019726,2]
[362480744,1748333446359,-430.0,0.00019726,2]
[362480745,1748333446369,-430.0,0.00019726,2]
[362480746,1748333446379,-430.0,0.00019726,2]
[362480748,1748333446389,-430.0,0.00019726,2]
[362480749,1748333446399,-437.84,0.00019726,2]
[362480750,1748333446408,-430.0,0.00019726,2]
[362480752,1748333446418,-430.0,0.00019726,2]
[362480754,1748333446428,-430.0,0.00019726,2]
[362480756,1748333446437,-430.0,0.00019726,2]
[362480758,1748333446447,-430.0,0.00019726,2]
[362480760,1748333446457,-430.0,0.00019726,2]
[362480762,1748333446467,-430.0,0.00019726,2]
[362480764,1748333446477,-430.0,0.00019726,2]
[362480766,1748333446487,-496.92,0.00019726,2]
[362480767,1748333446497,-430.0,0.00019726,2]
[362480768,1748333446507,-430.0,0.00019726,2]
[362480769,1748333446517,-430.0,0.00019726,2]
[362480770,1748333446527,-430.0,0.00019726,2]
[362480771,1748333446537,-338.67794015,0.00019726,2]
[362480772,1748333446548,-430.0,0.00019726,2]
[362480773,1748333446557,-430.0,0.00019726,2]
[362480774,1748333446567,-430.0,0.00019726,2]
[362480775,1748333446577,-430.0,0.00019726,2]
[362480777,1748333446586,-430.0,0.00019726,2]
[362480779,1748333446595,-430.0,0.00019726,2]
[362480781,1748333446605,-391.92,0.00019726,2]
[362480783,1748333446614,-430.0,0.00019726,2]
[362480785,1748333446624,-430.0,0.00019726,2]
[362480787,1748333446634,-430.0,0.00019726,2]
[362480789,1748333446643,-430.0,0.00019726,2]
[362480791,1748333446653,-430.0,0.00019726,2]
[362480793,1748333446663,-430.0,0.00019726,2]
[362480795,1748333446673,-570.75,0.00019726,2]
[362480797,1748333446683,-415.19592055,0.00019726,2]
[362480799,1748333446693,-430.0,0.00019726,2]
[362480801,1748333446707,-430.0,0.00019726,2]
[362480803,1748333446717,-430.0,0.00019726,2]
[362480805,1748333446726,-430.0,0.00019726,2]
[362480807,1748333446736,-430.0,0.00019726,2]
[362480810,1748333446746,-430.0,0.00019726,2]
[362480812,1748333446756,-548.89,0.00019726,2]
[362480814,1748333446766,-430.0,0.00019726,2]
[362480815,1748333446779,-430.0,0.00019726,2]
[362480817,1748333446789,-430.0,0.00019726,2]
[362480819,1748333446799,-506.96,0.00019726,2]
[362480821,1748333446809,-430.0,0.00019726,2]
[362480822,1748333446819,-693.1,0.00019726,2]
[362480824,1748333446828,-870.83,0.00019726,2]
[362480826,1748333446837,-430.0,0.00019726,2]
[362480836,1748333446847,-430.0,0.00019726,2]
[362480838,1748333446975,-732.75,0.00019726,2]
[362480840,1748333446986,-560.31747311,0.00019726,2]
[362480842,1748333446996,-430.0,0.00019726,2]
[362480844,1748333447006,-430.0,0.00019726,2]
[362480846,1748333447015,-160.0,0.00019743,2]
[362480848,1748333447025,-212.62946336,0.00019743,2]
[362480851,1748333447037,-842.5625,0.00019743,2]
[362480853,1748333447046,-209.32205078,0.00019757,2]
[362480855,1748333447056,-445.02725255,0.00019829,2]
[362480857,1748333447065,-420.0,0.0002,2]
[362480859,1748333447075,-420.0,0.0002,2]
[362480861,1748333447085,-430.0,0.0002,2]
[362480863,1748333447095,-430.0,0.0002,2]
[362480866,1748333447104,-430.0,0.0002,2]
[362480868,1748333447114,-430.0,0.0002,2]
[362480870,1748333447123,-430.0,0.0002,2]
[362480872,1748333447132,-430.0,0.0002,2]
[362480874,1748333447142,-430.0,0.0002,2]
[362480876,1748333447152,-430.0,0.0002,2]
[362480878,1748333447161,-430.0,0.0002,2]
[362480880,1748333447171,-430.0,0.0002,2]
[362480882,1748333447180,-430.0,0.0002,2]
[362480884,1748333447190,-430.0,0.0002,2]
[362480887,1748333447200,-430.0,0.0002,2]
[362480890,1748333447209,-430.0,0.0002,2]
[362480893,1748333447218,-430.0,0.0002,2]
[362480896,1748333447227,-430.0,0.0002,2]
[362480899,1748333447237,-430.0,0.0002,2]
[362480902,1748333447246,-488.1799649,0.0002,2]
[362480905,1748333447256,-200.61055398,0.0002,2]
[362480908,1748333447265,-430.0,0.0002,2]
[362480911,1748333447274,-430.0,0.0002,2]
[362480914,1748333447285,-430.0,0.0002,2]
[362480917,1748333447294,-430.0,0.0002,2]
[362480920,1748333447304,-430.0,0.0002,2]
[362480922,1748333447313,-282.73360964,0.0002,2]
[362480924,1748333447322,-430.0,0.0002,2]
[362480926,1748333447332,-430.0,0.0002,2]
[362480928,1748333447342,-430.0,0.0002,2]
[362480930,1748333447352,-430.0,0.0002,2]
[362480932,1748333447362,-430.0,0.0002,2]
[362480934,1748333447372,-430.0,0.0002,2]
[362480936,1748333447382,-430.0,0.0002,2]
[362480938,1748333447391,-430.0,0.0002,2]
[362480940,1748333447400,-346.77002132,0.0002,2]
[362480943,1748333447410,-430.0,0.0002,2]
[362480945,1748333447420,-236.46398,0.0002,2]
[362480947,1748333447429,-430.0,0.0002,2]
[362480949,1748333447439,-430.0,0.0002,2]
[362480951,1748333447449,-699.27,0.0002,2]
[362480953,1748333447458,-430.0,0.0002,2]
[362480955,1748333447467,-430.0,0.0002,2]
[362480957,1748333447476,-430.0,0.0002,2]
[362480958,1748333447486,-304.72,0.0002,2]
[362480961,1748333447496,-430.0,0.0002,2]
[362480963,1748333447505,-430.0,0.0002,2]
[362480965,1748333447515,-1074.85,0.0002,2]
[362480967,1748333447525,-430.0,0.0002,2]
[362480969,1748333447537,-430.0,0.0002,2]
[362480971,1748333447546,-579.1,0.0002,2]
[362480973,1748333447555,-430.0,0.0002,2]
[362480975,1748333447565,-956.64,0.0002,2]
[362480977,1748333447575,-387.18469651,0.0002,2]
[362480979,1748333447584,-430.0,0.0002,2]
[362480981,1748333447594,-430.0,0.0002,2]
[362480983,1748333447603,-839.77,0.0002,2]
[362480985,1748333447612,-430.0,0.0002,2]
[362480987,1748333447622,-430.0,0.0002,2]
[362480989,1748333447632,-430.0,0.0002,2]
[362480991,1748333447641,-430.0,0.0002,2]
[362480993,1748333447651,-430.0,0.0002,2]
[362480995,1748333447660,-430.0,0.0002,2]
[362480997,1748333447669,-430.0,0.0002,2]
[362480999,1748333447679,-754.47,0.0002,2]
[362481000,1748333447690,-345.4,0.0002,2]
[362481003,1748333447704,-430.0,0.0002,2]
[362481005,1748333447713,-1725.46,0.0002,2]
[362481007,1748333447724,-430.0,0.0002,2]
[362481009,1748333447734,-1665.2,0.0002,2]
[362481011,1748333447744,-1353.44,0.0002,2]
[362481013,1748333447754,-430.0,0.0002,2]
[362481015,1748333447764,-430.0,0.0002,2]
[362481017,1748333447775,-2762.43,0.0002,2]
[362481019,1748333447786,-430.0,0.0002,2]
[362481021,1748333447795,-459.09,0.0002,2]
[362481023,1748333447806,-430.0,0.0002,2]
[362481025,1748333447816,-430.0,0.0002,2]
[362481027,1748333447825,-430.0,0.0002,2]
[362481029,1748333447834,-644.76,0.0002,2]
[362481031,1748333447844,-430.0,0.0002,2]
[362481033,1748333447853,-430.0,0.0002,2]
[362481035,1748333447864,-327.67,0.0002,2]
[362481037,1748333447874,-430.0,0.0002,2]
[362481039,1748333447883,-437.84,0.0002,2]
[362481041,1748333447892,-430.0,0.0002,2]
[362481043,1748333447901,-430.0,0.0002,2]
[362481045,1748333447911,-430.0,0.0002,2]
[362481047,1748333447920,-494.08,0.0002,2]
[362481049,1748333447930,-430.0,0.0002,2]
[362481051,1748333447939,-430.0,0.0002,2]
[362481053,1748333447949,-430.0,0.0002,2]
[362481055,1748333447958,-496.92,0.0002,2]
[362481057,1748333447968,-430.0,0.0002,2]
[362481059,1748333447977,-430.0,0.0002,2]
[362481060,1748333447987,-430.0,0.0002,2]
[362481062,1748333447997,-430.0,0.0002,2]
[362481064,1748333448006,-430.0,0.0002,2]
[362481066,1748333448016,-251.92350618,0.0002,2]
[362481068,1748333448025,-430.0,0.0002,2]
[362481070,1748333448036,-430.0,0.0002,2]
[362481072,1748333448046,-430.0,0.0002,2]
[362481074,1748333448056,-430.0,0.0002,2]
[362481076,1748333448065,-430.0,0.0002,2]
[362481078,1748333448075,-430.0,0.0002,2]
[362481080,1748333448085,-570.75,0.0002,2]
[362481082,1748333448094,-430.0,0.0002,2]
[362481084,1748333448104,-430.0,0.0002,2]
[362481086,1748333448114,-530.0,0.0002,2]
[362481088,1748333448123,-430.0,0.0002,2]
[362481090,1748333448133,-170.31096563,0.0002,2]
[362481092,1748333448142,-430.0,0.0002,2]
[362481094,1748333448153,-548.89,0.0002,2]
[362481096,1748333448162,-430.0,0.0002,2]
[362481098,1748333448172,-430.0,0.0002,2]
[362481100,1748333448182,-430.0,0.0002,2]
[362481102,1748333448191,-506.96,0.0002,2]
[362481104,1748333448201,-693.1,0.0002,2]
[362481106,1748333448210,-870.83,0.0002,2]
[362481108,1748333448220,-430.0,0.0002,2]
[362481110,1748333448229,-430.0,0.0002,2]
[362481112,1748333448239,-732.75,0.0002,2]
[362481114,1748333448249,-430.0,0.0002,2]
[362481116,1748333448259,-269.38,0.00020245,2]
[362481118,1748333448269,-430.0,0.00020273,2]
[362481120,1748333448280,-430.0,0.00020273,2]
[362481122,1748333448290,-430.0,0.00020273,2]
[362481124,1748333448300,-430.0,0.00020273,2]
[362481127,1748333448311,-468.17122438,0.00020273,2]
[362481129,1748333448321,-430.0,0.00020273,2]
[362481130,1748333448331,-430.0,0.00020273,2]
[362481133,1748333448342,-177.53415027,0.00020273,2]
[362481135,1748333448351,-187.87904902,0.00020273,2]
[362481137,1748333448361,-430.0,0.00020273,2]
[362481139,1748333448372,-430.0,0.00020273,2]
[362481141,1748333448381,-430.0,0.00020273,2]
[362481143,1748333448392,-430.0,0.00020273,2]
[362481145,1748333448402,-450.35,0.00020273,2]
[362481147,1748333448412,-430.0,0.00020273,2]
[362481149,1748333448423,-430.0,0.00020273,2]
[362481151,1748333448434,-430.0,0.00020273,2]
[362481153,1748333448445,-430.0,0.00020273,2]
[362481155,1748333448459,-430.0,0.00020273,2]
[362481157,1748333448472,-430.0,0.00020273,2]
[362481159,1748333448483,-430.0,0.00020273,2]
[362481161,1748333448494,-430.0,0.00020273,2]
[362481163,1748333448505,-430.0,0.00020273,2]
[362481165,1748333448515,-430.0,0.00020273,2]
[362481167,1748333448525,-430.0,0.00020273,2]
[362481169,1748333448538,-430.0,0.00020273,2]
[362481171,1748333448548,-430.0,0.00020273,2]
[362481173,1748333448560,-323.32,0.00020273,2]
[362481175,1748333448570,-699.27,0.00020273,2]
[362481177,1748333448579,-430.0,0.00020273,2]
[362481179,1748333448589,-430.0,0.00020273,2]
[362481181,1748333448599,-430.0,0.00020273,2]
[362481183,1748333448610,-299.96,0.00020273,2]
[362481185,1748333448620,-430.0,0.00020273,2]
[362481187,1748333448631,-1074.85,0.00020273,2]
[362481189,1748333448640,-430.0,0.00020273,2]
[362481190,1748333448651,-430.0,0.00020273,2]
[362481191,1748333448661,-579.1,0.00020273,2]
[362481192,1748333448671,-430.0,0.00020273,2]
[362481193,1748333448688,-956.64,0.00020273,2]
[362481194,1748333448701,-430.0,0.00020273,2]
[362481195,1748333448711,-430.0,0.00020273,2]
[362481196,1748333448721,-839.77,0.00020273,2]
[362481197,1748333448731,-430.0,0.00020273,2]
[362481198,1748333448742,-430.0,0.00020273,2]
[362481199,1748333448753,-430.0,0.00020273,2]
[362481200,1748333448763,-430.0,0.00020273,2]
[362481201,1748333448773,-430.0,0.00020273,2]
[362481202,1748333448786,-754.47,0.00020273,2]
[362481203,1748333448796,-1725.46,0.00020273,2]
[362481204,1748333448806,-1665.2,0.00020273,2]
[362481205,1748333448816,-1353.44,0.00020273,2]
[362481206,1748333448826,-430.0,0.00020273,2]
[362481207,1748333448836,-430.0,0.00020273,2]
[362481208,1748333448846,-2762.43,0.00020273,2]
[362481210,1748333448856,-459.09,0.00020273,2]
[362481211,1748333448866,-430.0,0.00020273,2]
[362481212,1748333448876,-644.76,0.00020273,2]
[362481214,1748333448887,-430.0,0.00020273,2]
[362481226,1748333448996,-430.0,0.00020273,2]
[362481228,1748333449007,-430.0,0.00020273,2]
[362481230,1748333449018,-437.84,0.00020273,2]
[362481232,1748333449028,-430.0,0.00020273,2]
[362481234,1748333449041,-430.0,0.00020273,2]
[362481236,1748333449053,-429.08,0.00020273,2]
[362481238,1748333449063,-430.0,0.00020273,2]
[362481240,1748333449072,-430.0,0.00020273,2]
[362481242,1748333449082,-430.0,0.00020273,2]
[362481244,1748333449092,-496.92,0.00020273,2]
[362481246,1748333449102,-430.0,0.00020273,2]
[362481248,1748333449112,-430.0,0.00020273,2]
[362481250,1748333449121,-430.0,0.00020273,2]
[362481253,1748333449132,-430.0,0.00020273,2]
[362481255,1748333449141,-552.69,0.00020273,2]
[362481257,1748333449151,-430.0,0.00020273,2]
[362481259,1748333449161,-430.0,0.00020273,2]
[362481261,1748333449171,-430.0,0.00020273,2]
[362481263,1748333449181,-430.0,0.00020273,2]
[362481265,1748333449190,-430.0,0.00020273,2]
[362481267,1748333449200,-570.75,0.00020273,2]
[362481269,1748333449210,-430.0,0.00020273,2]
[362481270,1748333449220,-430.0,0.00020273,2]
[362481273,1748333449230,-430.0,0.00020273,2]
[362481275,1748333449240,-430.0,0.00020273,2]
[362481277,1748333449251,-548.89,0.00020273,2]
[362481279,1748333449260,-430.0,0.00020273,2]
[362481281,1748333449270,-430.0,0.00020273,2]
[362481283,1748333449280,-430.0,0.00020273,2]
[362481285,1748333449292,-506.96,0.00020273,2]
[362481287,1748333449301,-693.1,0.00020273,2]
[362481289,1748333449311,-870.83,0.00020273,2]
[362481291,1748333449320,-430.0,0.00020273,2]
[362481293,1748333449330,-732.75,0.00020273,2]
[362481295,1748333449340,-481.75,0.00020273,2]
[362481297,1748333449349,-880.58023219,0.00020547,2]
[362481299,1748333449359,-21237.57685769,0.00020547,3]
[362481301,1748333449368,-430.0,0.00020547,2]
[362481303,1748333449378,-430.0,0.00020547,2]
[362481305,1748333449387,-430.0,0.00020547,2]
[362481307,1748333449397,-198.80675126,0.00020547,2]
[362481309,1748333449407,-430.0,0.00020547,2]
[362481311,1748333449417,-430.0,0.00020547,2]
[362481313,1748333449427,-430.0,0.00020547,2]
[362481315,1748333449436,-430.0,0.00020547,2]
[362481317,1748333449446,-430.0,0.00020547,2]
[362481319,1748333449456,-430.0,0.00020547,2]
[362481321,1748333449465,-430.0,0.00020547,2]
[362481323,1748333449475,-430.0,0.00020547,2]
[362481325,1748333449485,-430.0,0.00020547,2]
[362481327,1748333449495,-430.0,0.00020547,2]
[362481329,1748333449504,-430.0,0.00020547,2]
[362481331,1748333449514,-430.0,0.00020547,2]
[362481333,1748333449524,-430.0,0.00020547,2]
[362481335,1748333449535,-430.0,0.00020547,2]
[362481337,1748333449544,-430.0,0.00020547,2]
[362481339,1748333449553,-430.0,0.00020547,2]
[362481341,1748333449562,-430.0,0.00020547,2]
[362481343,1748333449572,-699.27,0.00020547,2]
[362481345,1748333449581,-430.0,0.00020547,2]
[362481347,1748333449591,-430.0,0.00020547,2]
[362481349,1748333449600,-430.0,0.00020547,2]
[362481351,1748333449610,-430.0,0.00020547,2]
[362481353,1748333449620,-1074.85,0.00020547,2]
[362481355,1748333449629,-430.0,0.00020547,2]
[362481357,1748333449639,-430.0,0.00020547,2]
[362481359,1748333449648,-579.1,0.00020547,2]
[362481362,1748333449657,-430.0,0.00020547,2]
[362481364,1748333449667,-956.64,0.00020547,2]
[362481366,1748333449677,-430.0,0.00020547,2]
[362481368,1748333449687,-430.0,0.00020547,2]
[362481370,1748333449701,-839.77,0.00020547,2]
[362481371,1748333449710,-430.0,0.00020547,2]
[362481374,1748333449720,-430.0,0.00020547,2]
[362481376,1748333449729,-430.0,0.00020547,2]
[362481378,1748333449741,-430.0,0.00020547,2]
[362481380,1748333449751,-430.0,0.00020547,2]
[362481382,1748333449760,-754.47,0.00020547,2]
[362481384,1748333449770,-1725.46,0.00020547,2]
[362481386,1748333449779,-1665.2,0.00020547,2]
[362481388,1748333449791,-1353.44,0.00020547,2]
[362481390,1748333449800,-430.0,0.00020547,2]
[362481391,1748333449812,-2762.43,0.00020547,2]
[362481393,1748333449822,-459.09,0.00020547,2]
[362481395,1748333449831,-430.0,0.00020547,2]
[362481398,1748333449841,-644.76,0.00020547,2]
[362481400,1748333449850,-430.0,0.00020547,2]
[362481402,1748333449859,-430.0,0.00020547,2]
[362481404,1748333449869,-430.0,0.00020547,2]
[362481406,1748333449879,-437.84,0.00020547,2]
[362481408,1748333449889,-430.0,0.00020547,2]
[362481410,1748333449899,-430.0,0.00020547,2]
[362481412,1748333449908,-430.0,0.00020547,2]
[362481413,1748333449917,-430.0,0.00020547,2]
[362481416,1748333449926,-496.92,0.00020547,2]
[362481418,1748333449935,-346.36,0.00020547,2]
[362481420,1748333449945,-430.0,0.00020547,2]
[362481422,1748333449955,-430.0,0.00020547,2]
[362481424,1748333449964,-430.0,0.00020547,2]
[362481425,1748333449974,-430.0,0.00020547,2]
[362481427,1748333449984,-430.0,0.00020547,2]
[362481429,1748333449993,-430.0,0.00020547,2]
[362481431,1748333450003,-430.0,0.00020547,2]
[362481434,1748333450012,-570.75,0.00020547,2]
[362481436,1748333450022,-430.0,0.00020547,2]
[362481438,1748333450031,-430.0,0.00020547,2]
[362481440,1748333450042,-430.0,0.00020547,2]
[362481442,1748333450051,-274.28,0.00020547,2]
[362481444,1748333450061,-548.89,0.00020547,2]
[362481446,1748333450070,-430.0,0.00020547,2]
[362481448,1748333450079,-430.0,0.00020547,2]
[362481450,1748333450089,-430.0,0.00020547,2]
[362481452,1748333450098,-506.96,0.00020547,2]
[362481454,1748333450107,-693.1,0.00020547,2]
[362481456,1748333450117,-870.83,0.00020547,2]
[362481458,1748333450126,-430.0,0.00020547,2]
[362481460,1748333450135,-732.75,0.00020547,2]
[362481462,1748333450145,-209.32205078,0.00020614,3]
[362481464,1748333450154,-430.0,0.00020821,2]
[362481466,1748333450164,-430.0,0.00020821,2]
[362481468,1748333450173,-278.97639886,0.00020821,2]
[362481470,1748333450182,-430.0,0.00020821,2]
[362481472,1748333450191,-430.0,0.00020821,2]
[362481474,1748333450201,-430.0,0.00020821,2]
[362481476,1748333450210,-430.0,0.00020821,2]
[362481478,1748333450220,-430.0,0.00020821,2]
[362481480,1748333450229,-430.0,0.00020821,2]
[362481482,1748333450239,-430.0,0.00020821,2]
[362481484,1748333450248,-430.0,0.00020821,2]
[362481486,1748333450259,-376.25,0.00020821,2]
[362481488,1748333450268,-430.0,0.00020821,2]
[362481490,1748333450277,-430.0,0.00020821,2]
[362481492,1748333450287,-430.0,0.00020821,2]
[362481494,1748333450297,-430.0,0.00020821,2]
[362481496,1748333450306,-430.0,0.00020821,2]
[362481498,1748333450316,-430.0,0.00020821,2]
[362481500,1748333450325,-699.27,0.00020821,2]
[362481502,1748333450335,-430.0,0.00020821,2]
[362481504,1748333450344,-430.0,0.00020821,2]
[362481506,1748333450354,-430.0,0.00020821,2]
[362481509,1748333450375,-430.0,0.00020821,2]
[362481511,1748333450386,-1074.85,0.00020821,2]
[362481513,1748333450397,-430.0,0.00020821,2]
[362481515,1748333450406,-430.0,0.00020821,2]
[362481517,1748333450416,-579.1,0.00020821,2]
[362481519,1748333450425,-430.0,0.00020821,2]
[362481521,1748333450436,-956.64,0.00020821,2]
[362481524,1748333450446,-430.0,0.00020821,2]
[362481526,1748333450456,-430.0,0.00020821,2]
[362481528,1748333450466,-839.77,0.00020821,2]
[362481530,1748333450475,-430.0,0.00020821,2]
[362481532,1748333450485,-522.76,0.00020821,2]
[362481534,1748333450495,-430.0,0.00020821,2]
[362481536,1748333450505,-430.0,0.00020821,2]
[362481538,1748333450514,-754.47,0.00020821,2]
[362481540,1748333450524,-1725.46,0.00020821,2]
[362481542,1748333450536,-1665.2,0.00020821,2]
[362481544,1748333450546,-1353.44,0.00020821,2]
[362481546,1748333450556,-430.0,0.00020821,2]
[362481548,1748333450566,-2762.43,0.00020821,2]
[362481550,1748333450576,-459.09,0.00020821,2]
[362481553,1748333450586,-430.0,0.00020821,2]
[362481555,1748333450595,-644.76,0.00020821,2]
[362481557,1748333450606,-430.0,0.00020821,2]
[362481559,1748333450615,-430.0,0.00020821,2]
[362481561,1748333450624,-430.0,0.00020821,2]
[362481563,1748333450634,-437.84,0.00020821,2]
[362481565,1748333450643,-430.0,0.00020821,2]
[362481567,1748333450654,-430.0,0.00020821,2]
[362481569,1748333450663,-430.0,0.00020821,2]
[362481571,1748333450673,-430.0,0.00020821,2]
[362481573,1748333450682,-496.92,0.00020821,2]
[362481575,1748333450693,-430.0,0.00020821,2]
[362481577,1748333450705,-296.33,0.00020821,2]
[362481579,1748333450715,-430.0,0.00020821,2]
[362481581,1748333450725,-430.0,0.00020821,2]
[362481583,1748333450734,-430.0,0.00020821,2]
[362481585,1748333450745,-430.0,0.00020821,2]
[362481601,1748333450882,-430.0,0.00020821,2]
[362481603,1748333450893,-570.75,0.00020821,2]
[362481605,1748333450903,-430.0,0.00020821,2]
[362481607,1748333450913,-531.27,0.00020821,2]
[362481609,1748333450922,-430.0,0.00020821,2]
[362481611,1748333450933,-140.57489263,0.00020821,2]
[362481628,1748333451090,-300.0,0.0001702,2]
[362481630,1748333451100,-408.31510737,0.00020821,2]
[362481633,1748333451110,-430.0,0.00020821,2]
[362481635,1748333451120,-430.0,0.00020821,2]
[362481637,1748333451130,-430.0,0.00020821,2]
[362481639,1748333451139,-417.61036263,0.00020821,2]
[362481641,1748333451156,-89.34963737,0.00020821,2]
[362481643,1748333451166,-693.1,0.00020821,2]
[362481646,1748333451175,-870.83,0.00020821,2]
[362481648,1748333451185,-430.0,0.00020821,2]
[362481650,1748333451195,-732.75,0.00020821,2]
[362481652,1748333451205,-587.0,0.00020822,2]
[362481654,1748333451215,-403.0,0.00021038,2]
[362481656,1748333451224,-430.0,0.00021095,2]
[362481658,1748333451234,-430.0,0.00021095,2]
[362481660,1748333451243,-430.0,0.00021095,2]
[362481662,1748333451253,-229.12036288,0.00021095,2]
[362481664,1748333451266,-200.87963712,0.00021095,2]
[362481666,1748333451276,-430.0,0.00021095,2]
[362481668,1748333451287,-430.0,0.00021095,2]
[362481670,1748333451297,-430.0,0.00021095,2]
[362481672,1748333451306,-430.0,0.00021095,2]
[362481674,1748333451317,-430.0,0.00021095,2]
[362481676,1748333451327,-430.0,0.00021095,2]
[362481678,1748333451336,-430.0,0.00021095,2]
[362481680,1748333451346,-430.0,0.00021095,2]
[362481682,1748333451356,-430.0,0.00021095,2]
[362481685,1748333451366,-350.78,0.00021095,2]
[362481687,1748333451375,-430.0,0.00021095,2]
[362481689,1748333451385,-237.17,0.00021095,2]
[362481691,1748333451395,-699.27,0.00021095,2]
[362481693,1748333451404,-430.0,0.00021095,2]
[362481695,1748333451414,-430.0,0.00021095,2]
[362481697,1748333451424,-430.0,0.00021095,2]
[362481699,1748333451433,-151.0,0.00021095,2]
[362481701,1748333451442,-483.36,0.00021095,2]
[362481703,1748333451452,-1074.85,0.00021095,2]
[362481705,1748333451461,-430.0,0.00021095,2]
[362481707,1748333451471,-430.0,0.00021095,2]
[362481709,1748333451480,-579.1,0.00021095,2]
[362481711,1748333451489,-430.0,0.00021095,2]
[362481713,1748333451499,-956.64,0.00021095,2]
[362481715,1748333451508,-430.0,0.00021095,2]
[362481717,1748333451518,-430.0,0.00021095,2]
[362481719,1748333451530,-839.77,0.00021095,2]
[362481721,1748333451541,-430.0,0.00021095,2]
[362481723,1748333451550,-430.0,0.00021095,2]
[362481725,1748333451560,-437.01,0.00021095,2]
[362481727,1748333451570,-754.47,0.00021095,2]
[362481729,1748333451579,-1725.46,0.00021095,2]
[362481731,1748333451588,-1665.2,0.00021095,2]
[362481733,1748333451598,-1353.44,0.00021095,2]
[362481735,1748333451607,-430.0,0.00021095,2]
[362481737,1748333451616,-2762.43,0.00021095,2]
[362481739,1748333451626,-459.09,0.00021095,2]
[362481741,1748333451635,-430.0,0.00021095,2]
[362481743,1748333451645,-644.76,0.00021095,2]
[362481744,1748333451655,-430.0,0.00021095,2]
[362481745,1748333451664,-430.0,0.00021095,2]
[362481746,1748333451674,-430.0,0.00021095,2]
[362481747,1748333451683,-437.84,0.00021095,2]
[362481748,1748333451693,-430.0,0.00021095,2]
[362481749,1748333451706,-317.87427809,0.00021095,2]
[362481750,1748333451716,-430.0,0.00021095,2]
[362481751,1748333451725,-430.0,0.00021095,2]
[362481752,1748333451735,-496.92,0.00021095,2]
[362481753,1748333451746,-430.0,0.00021095,2]
[362481754,1748333451755,-430.0,0.00021095,2]
[362481755,1748333451765,-151.0,0.00021095,2]